[Event "Titled Tuesday Blitz March 07 Early 2023"]
[White "Jakubowski, Krzysztof"]
[Black "Vlasak, Lukas"]
[WhiteFideId "1112848"]
[BlackFideId "324752"]
[WhiteElo "2359"]
[BlackElo "2345"]
[Result "0-1"]
[Round "09"]
[TimeControl "180+2"]
[Date "2023.03.07"]
[WhiteClock "0:00:11"]
[BlackClock "0:00:19"]

1. e4 {[%clk 0:03:00]}  c5 {[%clk 0:02:59]} 2. Nf3 {[%clk 0:03:00]}  e6 {[%clk 0:02:58]} 3. d4 {[%clk 0:03:00]}  cxd4 {[%clk 0:02:59]} 4. Nxd4 {[%clk 0:03:01]}  Nc6 {[%clk 0:02:59]} 5. Nc3 {[%clk 0:03:00]}  Qc7 {[%clk 0:02:59]} 6. Be3 {[%clk 0:02:58]}  a6 {[%clk 0:02:59]} 7. Qf3 {[%clk 0:02:57]}  b5 {[%clk 0:02:58]} 8. Nxc6 {[%clk 0:02:51]}  Qxc6 {[%clk 0:02:55]} 9. O-O-O {[%clk 0:02:35]}  b4 {[%clk 0:02:44]} 10. Nd5 {[%clk 0:02:12]}  exd5 {[%clk 0:02:43]} 11. exd5 {[%clk 0:02:12]}  Qf6 {[%clk 0:02:28]} 12. Qe4+ {[%clk 0:02:08]}  Qe7 {[%clk 0:02:28]} 13. Qc4 {[%clk 0:01:59]}  Nf6 {[%clk 0:02:17]} 14. Bd3 {[%clk 0:01:49]}  Bb7 {[%clk 0:02:11]} 15. Rhe1 {[%clk 0:01:49]}  Bxd5 {[%clk 0:02:10]} 16. Qc7 {[%clk 0:01:42]}  Be6 {[%clk 0:02:05]} 17. Qb7 {[%clk 0:01:41]}  Qd8 {[%clk 0:01:58]} 18. f4 {[%clk 0:01:22]}  Be7 {[%clk 0:01:58]} 19. f5 {[%clk 0:01:21]}  Bd5 {[%clk 0:01:57]} 20. Qb6 {[%clk 0:01:17]}  Qxb6 {[%clk 0:01:56]} 21. Bxb6 {[%clk 0:01:17]}  Kf8 {[%clk 0:01:54]} 22. Re2 {[%clk 0:01:11]}  Bc6 {[%clk 0:01:46]} 23. Rde1 {[%clk 0:01:07]}  Nd5 {[%clk 0:01:44]} 24. Rxe7 {[%clk 0:00:59]}  Nxe7 {[%clk 0:01:43]} 25. Bc5 {[%clk 0:00:59]}  Re8 {[%clk 0:01:43]} 26. Bxb4 {[%clk 0:00:55]}  h5 {[%clk 0:01:37]} 27. f6 {[%clk 0:00:51]}  gxf6 {[%clk 0:01:36]} 28. Bxa6 {[%clk 0:00:51]}  Rh6 {[%clk 0:01:31]} 29. g3 {[%clk 0:00:42]}  f5 {[%clk 0:01:31]} 30. Bc4 {[%clk 0:00:42]}  Be4 {[%clk 0:01:30]} 31. b3 {[%clk 0:00:39]}  d5 {[%clk 0:01:28]} 32. Bb5 {[%clk 0:00:39]}  Rc8 {[%clk 0:01:26]} 33. Re2 {[%clk 0:00:38]}  Re6 {[%clk 0:01:25]} 34. Kb2 {[%clk 0:00:38]}  Rd8 {[%clk 0:01:13]} 35. a4 {[%clk 0:00:36]}  Kg7 {[%clk 0:01:13]} 36. Rd2 {[%clk 0:00:36]}  Nc6 {[%clk 0:01:10]} 37. Bc5 {[%clk 0:00:35]}  Ne5 {[%clk 0:01:02]} 38. a5 {[%clk 0:00:29]}  Nf3 {[%clk 0:01:01]} 39. Rf2 {[%clk 0:00:27]}  d4 {[%clk 0:01:00]} 40. b4 {[%clk 0:00:26]}  Ne5 {[%clk 0:00:56]} 41. Rd2 {[%clk 0:00:23]}  d3 {[%clk 0:00:56]} 42. c3 {[%clk 0:00:20]}  Nf3 {[%clk 0:00:55]} 43. Rd1 {[%clk 0:00:20]}  d2 {[%clk 0:00:55]} 44. a6 {[%clk 0:00:19]}  Bd3 {[%clk 0:00:40]} 45. Bxd3 {[%clk 0:00:16]}  Rxd3 {[%clk 0:00:41]} 46. Kc2 {[%clk 0:00:14]}  Re1 {[%clk 0:00:32]} 47. a7 {[%clk 0:00:13]}  Rxd1 {[%clk 0:00:32]} 48. Kxd1 {[%clk 0:00:12]}  Rd8 {[%clk 0:00:19]} 49. b5 {[%clk 0:00:12]}  Re8 {[%clk 0:00:19]} 50. Bf2 {[%clk 0:00:11]}  Re1+ {[%clk 0:00:18]} 51. Kc2 {[%clk 0:00:11]}  d1=Q+ {[%clk 0:00:19]} 52. Kb2 {[%clk 0:00:11]}  Qa1+ {[%clk 0:00:19]} 53. Kb3 {[%clk 0:00:11]}  Rb1+ {[%clk 0:00:19]} 54. Kc4 {[%clk 0:00:12]}  Qa4+ {[%clk 0:00:19]} 55. Kd5 {[%clk 0:00:12]}  Rxb5+ {[%clk 0:00:19]} 56. Kc6 {[%clk 0:00:12]}  Qa6+ {[%clk 0:00:19]} 57. Kc7 {[%clk 0:00:12]}  Rb7+ {[%clk 0:00:19]} 58. Kd8 {[%clk 0:00:11]}  Qd6+ {[%clk 0:00:19]} 59. Kc8 {[%clk 0:00:11]}  Qd7# {[%clk 0:00:19]} 0-1


[Site "https://www.chess.com"]

[Event "Titled Tuesday Blitz March 07 Early 2023"]
[White "Santos Flores, Alberto"]
[Black "Tymrakiewicz, Rafal"]
[WhiteFideId "3601234"]
[BlackFideId "1108832"]
[WhiteElo "2235"]
[BlackElo "2151"]
[Result "0-1"]
[Round "09"]
[TimeControl "180+2"]
[Date "2023.03.07"]
[WhiteClock "0:00:06"]
[BlackClock "0:00:25"]

1. e4 {[%clk 0:03:00]}  Nf6 {[%clk 0:02:59]} 2. e5 {[%clk 0:03:00]}  Nd5 {[%clk 0:02:59]} 3. d4 {[%clk 0:03:01]}  d6 {[%clk 0:02:59]} 4. Bc4 {[%clk 0:03:01]}  Nb6 {[%clk 0:02:59]} 5. Bb3 {[%clk 0:03:02]}  d5 {[%clk 0:02:56]} 6. Qf3 {[%clk 0:03:01]}  Be6 {[%clk 0:02:47]} 7. c3 {[%clk 0:02:58]}  Qd7 {[%clk 0:02:47]} 8. h3 {[%clk 0:02:56]}  Bf5 {[%clk 0:02:46]} 9. Nd2 {[%clk 0:02:49]}  e6 {[%clk 0:02:46]} 10. Ne2 {[%clk 0:02:43]}  c5 {[%clk 0:02:43]} 11. Nf4 {[%clk 0:02:24]}  cxd4 {[%clk 0:02:35]} 12. cxd4 {[%clk 0:02:24]}  Nc6 {[%clk 0:02:35]} 13. Qe3 {[%clk 0:02:22]}  Rc8 {[%clk 0:01:54]} 14. a3 {[%clk 0:02:18]}  Na5 {[%clk 0:01:52]} 15. Bd1 {[%clk 0:02:17]}  Nac4 {[%clk 0:01:51]} 16. Nxc4 {[%clk 0:02:16]}  Nxc4 {[%clk 0:01:51]} 17. Qe2 {[%clk 0:02:02]}  Qc6 {[%clk 0:01:40]} 18. O-O {[%clk 0:02:00]}  Qb6 {[%clk 0:01:40]} 19. b3 {[%clk 0:01:42]}  Na5 {[%clk 0:01:20]} 20. Be3 {[%clk 0:01:17]}  Be7 {[%clk 0:01:08]} 21. Qa2 {[%clk 0:01:03]}  O-O {[%clk 0:01:06]} 22. b4 {[%clk 0:00:57]}  Nc4 {[%clk 0:01:04]} 23. Bb3 {[%clk 0:00:50]}  a5 {[%clk 0:01:02]} 24. bxa5 {[%clk 0:00:42]}  Nxa5 {[%clk 0:01:02]} 25. Ba4 {[%clk 0:00:38]}  Qa6 {[%clk 0:00:57]} 26. Rfc1 {[%clk 0:00:36]}  b5 {[%clk 0:00:56]} 27. Bc2 {[%clk 0:00:34]}  Bxc2 {[%clk 0:00:53]} 28. Rxc2 {[%clk 0:00:35]}  Nc4 {[%clk 0:00:50]} 29. a4 {[%clk 0:00:34]}  b4 {[%clk 0:00:50]} 30. Nd3 {[%clk 0:00:32]}  Nxe3 {[%clk 0:00:35]} 31. fxe3 {[%clk 0:00:14]}  Qxd3 {[%clk 0:00:34]} 32. Rxc8 {[%clk 0:00:11]}  Rxc8 {[%clk 0:00:35]} 33. a5 {[%clk 0:00:11]}  Qxe3+ {[%clk 0:00:34]} 34. Kh1 {[%clk 0:00:11]}  b3 {[%clk 0:00:32]} 35. Qb2 {[%clk 0:00:10]}  Rc2 {[%clk 0:00:27]} 36. Qa3 {[%clk 0:00:06]}  Bxa3 {[%clk 0:00:25]} 0-1


[Site "https://www.chess.com"]

[Event "Titled Tuesday Blitz March 07 Early 2023"]
[White "Reprintsev, Alexander"]
[Black "Heinemann, Josefine"]
[WhiteFideId "14100541"]
[BlackFideId "12900460"]
[WhiteElo "2229"]
[BlackElo "2342"]
[Result "1-0"]
[Round "09"]
[TimeControl "180+2"]
[Date "2023.03.07"]
[WhiteClock "0:01:57"]
[BlackClock "0:01:12"]

1. e4 {[%clk 0:02:59]}  c6 {[%clk 0:02:56]} 2. Nc3 {[%clk 0:02:54]}  d5 {[%clk 0:02:52]} 3. Nf3 {[%clk 0:02:54]}  dxe4 {[%clk 0:02:51]} 4. Nxe4 {[%clk 0:02:53]}  Nd7 {[%clk 0:02:51]} 5. Qe2 {[%clk 0:02:53]}  e6 {[%clk 0:02:47]} 6. d4 {[%clk 0:02:50]}  Ngf6 {[%clk 0:02:45]} 7. Bd2 {[%clk 0:02:49]}  Be7 {[%clk 0:02:39]} 8. O-O-O {[%clk 0:02:48]}  O-O {[%clk 0:02:38]} 9. g4 {[%clk 0:02:47]}  Qb6 {[%clk 0:02:24]} 10. g5 {[%clk 0:02:42]}  Nxe4 {[%clk 0:02:19]} 11. Qxe4 {[%clk 0:02:41]}  a5 {[%clk 0:02:10]} 12. Bd3 {[%clk 0:02:40]}  g6 {[%clk 0:02:07]} 13. h4 {[%clk 0:02:39]}  c5 {[%clk 0:01:57]} 14. h5 {[%clk 0:02:38]}  f5 {[%clk 0:01:46]} 15. Qh4 {[%clk 0:02:38]}  Rf7 {[%clk 0:01:37]} 16. hxg6 {[%clk 0:02:36]}  Rg7 {[%clk 0:01:36]} 17. dxc5 {[%clk 0:02:09]}  Bxc5 {[%clk 0:01:26]} 18. Bc3 {[%clk 0:02:01]}  e5 {[%clk 0:01:12]} 19. Bc4+ {[%clk 0:01:57]} 1-0


[Site "https://www.chess.com"]

[Event "Titled Tuesday Blitz March 07 Early 2023"]
[White "Staudenhocker43"]
[Black "Leenhouts, Koen"]
[BlackFideId "1008439"]
[WhiteElo "2445"]
[BlackElo "2409"]
[Result "1-0"]
[Round "09"]
[TimeControl "180+2"]
[Date "2023.03.07"]
[WhiteClock "0:00:53"]
[BlackClock "0:00:12"]

1. d4 {[%clk 0:03:00]}  d5 {[%clk 0:02:45]} 2. Nf3 {[%clk 0:03:01]}  Nf6 {[%clk 0:02:44]} 3. c4 {[%clk 0:03:01]}  c6 {[%clk 0:02:44]} 4. Nc3 {[%clk 0:03:01]}  e6 {[%clk 0:02:42]} 5. Bg5 {[%clk 0:03:00]}  Nbd7 {[%clk 0:02:40]} 6. e3 {[%clk 0:02:59]}  Qa5 {[%clk 0:02:39]} 7. Nd2 {[%clk 0:02:59]}  dxc4 {[%clk 0:02:39]} 8. Bxf6 {[%clk 0:02:59]}  Nxf6 {[%clk 0:02:39]} 9. Nxc4 {[%clk 0:03:00]}  Qc7 {[%clk 0:02:39]} 10. Rc1 {[%clk 0:03:00]}  Be7 {[%clk 0:02:35]} 11. g3 {[%clk 0:03:00]}  O-O {[%clk 0:02:35]} 12. Bg2 {[%clk 0:03:01]}  c5 {[%clk 0:02:30]} 13. Nb5 {[%clk 0:02:55]}  Qd8 {[%clk 0:02:28]} 14. dxc5 {[%clk 0:02:51]}  Bxc5 {[%clk 0:02:26]} 15. Nbd6 {[%clk 0:02:42]}  Bb4+ {[%clk 0:02:23]} 16. Ke2 {[%clk 0:02:41]}  e5 {[%clk 0:02:04]} 17. a3 {[%clk 0:02:23]}  Bg4+ {[%clk 0:01:53]} 18. f3 {[%clk 0:02:19]}  Bxd6 {[%clk 0:01:54]} 19. Qxd6 {[%clk 0:02:16]}  Be6 {[%clk 0:01:41]} 20. Qxd8 {[%clk 0:02:16]}  Rfxd8 {[%clk 0:01:38]} 21. Nxe5 {[%clk 0:02:13]}  Re8 {[%clk 0:01:37]} 22. f4 {[%clk 0:02:09]}  Rad8 {[%clk 0:01:28]} 23. Rhd1 {[%clk 0:01:59]}  Ng4 {[%clk 0:01:28]} 24. Nxg4 {[%clk 0:01:55]}  Bxg4+ {[%clk 0:01:27]} 25. Bf3 {[%clk 0:01:56]}  Bxf3+ {[%clk 0:01:25]} 26. Kxf3 {[%clk 0:01:56]}  f5 {[%clk 0:01:18]} 27. h4 {[%clk 0:01:42]}  Rxd1 {[%clk 0:01:13]} 28. Rxd1 {[%clk 0:01:42]}  Re7 {[%clk 0:01:14]} 29. Rd5 {[%clk 0:01:40]}  g6 {[%clk 0:01:13]} 30. h5 {[%clk 0:01:39]}  Kf7 {[%clk 0:01:11]} 31. hxg6+ {[%clk 0:01:40]}  hxg6 {[%clk 0:01:11]} 32. Rd6 {[%clk 0:01:31]}  b6 {[%clk 0:00:58]} 33. Rc6 {[%clk 0:01:21]}  Rd7 {[%clk 0:00:55]} 34. b4 {[%clk 0:01:20]}  Kg7 {[%clk 0:00:47]} 35. g4 {[%clk 0:01:18]}  fxg4+ {[%clk 0:00:43]} 36. Kxg4 {[%clk 0:01:19]}  Rd3 {[%clk 0:00:42]} 37. Rc7+ {[%clk 0:01:19]}  Kf6 {[%clk 0:00:35]} 38. Rxa7 {[%clk 0:01:19]}  Rxe3 {[%clk 0:00:34]} 39. Ra6 {[%clk 0:01:17]}  Kf7 {[%clk 0:00:28]} 40. a4 {[%clk 0:01:16]}  Ra3 {[%clk 0:00:25]} 41. b5 {[%clk 0:01:12]}  Ra1 {[%clk 0:00:16]} 42. Kf3 {[%clk 0:01:05]}  Kf6 {[%clk 0:00:13]} 43. Rxb6+ {[%clk 0:01:05]}  Kf5 {[%clk 0:00:13]} 44. Ra6 {[%clk 0:01:04]}  Ra3+ {[%clk 0:00:14]} 45. Kg2 {[%clk 0:01:03]}  Kxf4 {[%clk 0:00:14]} 46. b6 {[%clk 0:01:03]}  g5 {[%clk 0:00:14]} 47. b7 {[%clk 0:01:01]}  Rb3 {[%clk 0:00:13]} 48. Rf6+ {[%clk 0:00:55]}  Kg4 {[%clk 0:00:13]} 49. Rf7 {[%clk 0:00:54]}  Rb2+ {[%clk 0:00:14]} 50. Kf1 {[%clk 0:00:54]}  Kg3 {[%clk 0:00:14]} 51. a5 {[%clk 0:00:54]}  g4 {[%clk 0:00:11]} 52. a6 {[%clk 0:00:53]}  Rb1+ {[%clk 0:00:12]} 53. Ke2 {[%clk 0:00:53]} 1-0


[Site "https://www.chess.com"]

[Event "Titled Tuesday Blitz March 07 Early 2023"]
[White "Shubenkova, Veronika"]
[Black "Fernandez Garcia, Gumersindo"]
[WhiteFideId "44124040"]
[BlackFideId "24516740"]
[WhiteElo "2027"]
[BlackElo "2093"]
[Result "0-1"]
[Round "09"]
[TimeControl "180+2"]
[Date "2023.03.07"]
[WhiteClock "0:02:08"]
[BlackClock "0:02:01"]

1. e4 {[%clk 0:03:00]}  c5 {[%clk 0:02:55]} 2. Nc3 {[%clk 0:03:00]}  g6 {[%clk 0:02:54]} 3. g3 {[%clk 0:03:01]}  Bg7 {[%clk 0:02:55]} 4. Bg2 {[%clk 0:03:02]}  Nc6 {[%clk 0:02:55]} 5. d3 {[%clk 0:03:02]}  e6 {[%clk 0:02:55]} 6. f4 {[%clk 0:03:02]}  Nge7 {[%clk 0:02:55]} 7. Nf3 {[%clk 0:03:02]}  O-O {[%clk 0:02:55]} 8. O-O {[%clk 0:03:02]}  b6 {[%clk 0:02:53]} 9. Rb1 {[%clk 0:03:02]}  d5 {[%clk 0:02:51]} 10. e5 {[%clk 0:03:02]}  Ba6 {[%clk 0:02:47]} 11. h3 {[%clk 0:02:59]}  Rc8 {[%clk 0:02:41]} 12. Ne2 {[%clk 0:02:58]}  f6 {[%clk 0:02:37]} 13. exf6 {[%clk 0:02:57]}  Bxf6 {[%clk 0:02:38]} 14. g4 {[%clk 0:02:57]}  Bg7 {[%clk 0:02:36]} 15. Ng3 {[%clk 0:02:57]}  e5 {[%clk 0:02:32]} 16. fxe5 {[%clk 0:02:57]}  Nxe5 {[%clk 0:02:32]} 17. Bg5 {[%clk 0:02:55]}  Qd6 {[%clk 0:02:19]} 18. Bxe7 {[%clk 0:02:53]}  Qxe7 {[%clk 0:02:19]} 19. Nxe5 {[%clk 0:02:51]}  Qxe5 {[%clk 0:02:18]} 20. Kh2 {[%clk 0:02:47]}  Qd6 {[%clk 0:02:13]} 21. Rxf8+ {[%clk 0:02:44]}  Rxf8 {[%clk 0:02:12]} 22. Qh1 {[%clk 0:02:28]}  Be5 {[%clk 0:02:11]} 23. Bxd5+ {[%clk 0:02:27]}  Kh8 {[%clk 0:02:08]} 24. Rg1 {[%clk 0:02:27]}  Rf2+ {[%clk 0:02:07]} 25. Rg2 {[%clk 0:02:12]}  Bxg3+ {[%clk 0:02:06]} 26. Kg1 {[%clk 0:02:12]}  Qxd5 {[%clk 0:02:02]} 27. Rxg3 {[%clk 0:02:08]}  Rf1+ {[%clk 0:02:01]} 0-1


[Site "https://www.chess.com"]

[Event "Titled Tuesday Blitz March 07 Early 2023"]
[White "Ljukin, Sergei"]
[Black "Begunov, Konstantin"]
[WhiteFideId "14102200"]
[BlackFideId "4118510"]
[WhiteElo "2312"]
[BlackElo "2079"]
[Result "1-0"]
[Round "09"]
[TimeControl "180+2"]
[Date "2023.03.07"]
[WhiteClock "0:02:03"]
[BlackClock "0:01:57"]

1. e4 {[%clk 0:02:55]}  c5 {[%clk 0:02:59]} 2. Nf3 {[%clk 0:02:55]}  d6 {[%clk 0:03:00]} 3. d4 {[%clk 0:02:56]}  cxd4 {[%clk 0:03:01]} 4. Nxd4 {[%clk 0:02:56]}  Nf6 {[%clk 0:03:01]} 5. Nc3 {[%clk 0:02:56]}  a6 {[%clk 0:03:02]} 6. Bg5 {[%clk 0:02:56]}  e6 {[%clk 0:03:02]} 7. f4 {[%clk 0:02:57]}  Qb6 {[%clk 0:03:03]} 8. Qd3 {[%clk 0:02:56]}  Nc6 {[%clk 0:03:03]} 9. Bxf6 {[%clk 0:02:48]}  gxf6 {[%clk 0:03:04]} 10. O-O-O {[%clk 0:02:48]}  Be7 {[%clk 0:03:03]} 11. Be2 {[%clk 0:02:39]}  Qxd4 {[%clk 0:02:58]} 12. Qxd4 {[%clk 0:02:39]}  Nxd4 {[%clk 0:02:59]} 13. Rxd4 {[%clk 0:02:40]}  Bd7 {[%clk 0:02:55]} 14. Bh5 {[%clk 0:02:38]}  Bc6 {[%clk 0:02:53]} 15. f5 {[%clk 0:02:20]}  O-O {[%clk 0:02:44]} 16. Re1 {[%clk 0:02:19]}  Rfd8 {[%clk 0:02:31]} 17. Nd5 {[%clk 0:02:11]}  exd5 {[%clk 0:02:04]} 18. exd5 {[%clk 0:02:10]}  Kf8 {[%clk 0:02:05]} 19. dxc6 {[%clk 0:02:04]}  bxc6 {[%clk 0:02:05]} 20. Bf3 {[%clk 0:02:04]}  d5 {[%clk 0:02:04]} 21. Rh4 {[%clk 0:02:04]}  Kg7 {[%clk 0:01:57]} 22. Rxe7 {[%clk 0:02:03]} 1-0


[Site "https://www.chess.com"]

[Event "Titled Tuesday Blitz March 07 Early 2023"]
[White "Karas, Marek"]
[Black "Pakleza, Zbigniew"]
[WhiteFideId "14928558"]
[BlackFideId "1119290"]
[WhiteElo "2233"]
[BlackElo "2410"]
[Result "0-1"]
[Round "09"]
[TimeControl "180+2"]
[Date "2023.03.07"]
[WhiteClock "0:00:02"]
[BlackClock "0:00:05"]

1. d4 {[%clk 0:03:00]}  d6 {[%clk 0:02:59]} 2. e4 {[%clk 0:03:00]}  Nf6 {[%clk 0:02:59]} 3. Nc3 {[%clk 0:03:00]}  c6 {[%clk 0:02:59]} 4. Nf3 {[%clk 0:02:58]}  Bg4 {[%clk 0:02:59]} 5. Be2 {[%clk 0:02:53]}  e6 {[%clk 0:02:59]} 6. h3 {[%clk 0:02:50]}  Bh5 {[%clk 0:02:59]} 7. e5 {[%clk 0:02:46]}  Nd5 {[%clk 0:02:59]} 8. Ne4 {[%clk 0:02:31]}  Bxf3 {[%clk 0:02:58]} 9. Bxf3 {[%clk 0:02:31]}  dxe5 {[%clk 0:02:59]} 10. dxe5 {[%clk 0:02:31]}  Nd7 {[%clk 0:02:57]} 11. c4 {[%clk 0:02:28]}  N5b6 {[%clk 0:02:57]} 12. Qd4 {[%clk 0:02:18]}  Bb4+ {[%clk 0:02:39]} 13. Bd2 {[%clk 0:02:15]}  Bxd2+ {[%clk 0:02:38]} 14. Nxd2 {[%clk 0:02:13]}  Nxe5 {[%clk 0:02:37]} 15. Qxd8+ {[%clk 0:01:54]}  Rxd8 {[%clk 0:02:34]} 16. Be2 {[%clk 0:01:53]}  Ke7 {[%clk 0:02:30]} 17. O-O-O {[%clk 0:01:45]}  Rd4 {[%clk 0:02:20]} 18. b3 {[%clk 0:01:24]}  Rhd8 {[%clk 0:02:18]} 19. Nf3 {[%clk 0:01:23]}  Rxd1+ {[%clk 0:02:01]} 20. Rxd1 {[%clk 0:01:23]}  Rxd1+ {[%clk 0:02:01]} 21. Kxd1 {[%clk 0:01:24]}  Nxf3 {[%clk 0:02:02]} 22. Bxf3 {[%clk 0:01:24]}  Kd6 {[%clk 0:01:48]} 23. Kd2 {[%clk 0:01:14]}  a5 {[%clk 0:01:47]} 24. Be4 {[%clk 0:01:10]}  h6 {[%clk 0:01:45]} 25. Kd3 {[%clk 0:01:05]}  Nd7 {[%clk 0:01:39]} 26. Kd4 {[%clk 0:01:01]}  f5 {[%clk 0:01:28]} 27. Bc2 {[%clk 0:00:57]}  e5+ {[%clk 0:01:14]} 28. Ke3 {[%clk 0:00:57]}  f4+ {[%clk 0:00:42]} 29. Kd2 {[%clk 0:00:53]}  Kc5 {[%clk 0:00:31]} 30. Kc3 {[%clk 0:00:51]}  b5 {[%clk 0:00:31]} 31. cxb5 {[%clk 0:00:50]}  cxb5 {[%clk 0:00:32]} 32. a3 {[%clk 0:00:38]}  b4+ {[%clk 0:00:32]} 33. axb4+ {[%clk 0:00:35]}  axb4+ {[%clk 0:00:33]} 34. Kd3 {[%clk 0:00:35]}  Kd5 {[%clk 0:00:30]} 35. f3 {[%clk 0:00:31]}  Nc5+ {[%clk 0:00:28]} 36. Kd2 {[%clk 0:00:28]}  Kd4 {[%clk 0:00:29]} 37. Bd1 {[%clk 0:00:28]}  g5 {[%clk 0:00:16]} 38. Bc2 {[%clk 0:00:27]}  h5 {[%clk 0:00:12]} 39. Bd1 {[%clk 0:00:26]}  Nd7 {[%clk 0:00:06]} 40. Bc2 {[%clk 0:00:26]}  Nf6 {[%clk 0:00:07]} 41. Bg6 {[%clk 0:00:22]}  h4 {[%clk 0:00:06]} 42. Bf7 {[%clk 0:00:21]}  Nd7 {[%clk 0:00:06]} 43. Be6 {[%clk 0:00:19]}  Nc5 {[%clk 0:00:07]} 44. Bf7 {[%clk 0:00:19]}  Nb7 {[%clk 0:00:06]} 45. Bg8 {[%clk 0:00:18]}  Nd6 {[%clk 0:00:07]} 46. Be6 {[%clk 0:00:18]}  Nb5 {[%clk 0:00:05]} 47. Bc4 {[%clk 0:00:16]}  Nc3 {[%clk 0:00:05]} 48. Bg8 {[%clk 0:00:16]}  e4 {[%clk 0:00:03]} 49. fxe4 {[%clk 0:00:16]}  Kxe4 {[%clk 0:00:03]} 50. Ke1 {[%clk 0:00:15]}  Ke3 {[%clk 0:00:02]} 51. Kf1 {[%clk 0:00:14]}  Ne2 {[%clk 0:00:02]} 52. Bc4 {[%clk 0:00:13]}  Nd4 {[%clk 0:00:02]} 53. Bd5 {[%clk 0:00:12]}  Nf5 {[%clk 0:00:02]} 54. Kg1 {[%clk 0:00:12]}  Ng3 {[%clk 0:00:03]} 55. Bf3 {[%clk 0:00:11]}  Kd2 {[%clk 0:00:02]} 56. Bd5 {[%clk 0:00:11]}  Ke3 {[%clk 0:00:03]} 57. Bf3 {[%clk 0:00:10]}  Ne2+ {[%clk 0:00:03]} 58. Kf1 {[%clk 0:00:07]}  Nd4 {[%clk 0:00:04]} 59. Bd5 {[%clk 0:00:07]}  Kd3 {[%clk 0:00:04]} 60. Kf2 {[%clk 0:00:06]}  Kc3 {[%clk 0:00:05]} 61. Bf7 {[%clk 0:00:04]}  Nxb3 {[%clk 0:00:05]} 62. Kf3 {[%clk 0:00:05]}  Nd2+ {[%clk 0:00:05]} 63. Kg4 {[%clk 0:00:04]}  Ne4 {[%clk 0:00:05]} 64. Be6 {[%clk 0:00:03]}  Kd4 {[%clk 0:00:02]} 65. Kf5 {[%clk 0:00:02]}  Ke3 {[%clk 0:00:02]} 66. Bd5 {[%clk 0:00:02]}  Nc3 {[%clk 0:00:02]} 67. Bc4 {[%clk 0:00:02]}  Kf2 {[%clk 0:00:02]} 68. Kxg5 {[%clk 0:00:03]}  Kg3 {[%clk 0:00:02]} 69. Be6 {[%clk 0:00:01]}  Ne2 {[%clk 0:00:02]} 70. Bd5 {[%clk 0:00:01]}  Nd4 {[%clk 0:00:02]} 71. Be4 {[%clk 0:00:01]}  b3 {[%clk 0:00:03]} 72. Kf6 {[%clk 0:00:01]}  b2 {[%clk 0:00:03]} 73. Ke5 {[%clk 0:00:02]}  Nb3 {[%clk 0:00:04]} 74. Kf5 {[%clk 0:00:02]}  Nd2 {[%clk 0:00:05]} 75. Bd3 {[%clk 0:00:02]}  b1=Q {[%clk 0:00:04]} 76. Bxb1 {[%clk 0:00:02]}  Nxb1 {[%clk 0:00:05]} 0-1


[Site "https://www.chess.com"]

[Event "Titled Tuesday Blitz March 07 Early 2023"]
[White "Khamdamova, Afruza"]
[Black "Prokofiev, Valentyn"]
[WhiteFideId "14210444"]
[BlackFideId "14160161"]
[WhiteElo "2210"]
[BlackElo "2260"]
[Result "0-1"]
[Round "09"]
[TimeControl "180+2"]
[Date "2023.03.07"]
[WhiteClock "0:00:02"]
[BlackClock "0:00:46"]

1. d4 {[%clk 0:02:57]}  Nf6 {[%clk 0:03:00]} 2. Nc3 {[%clk 0:02:55]}  d5 {[%clk 0:02:59]} 3. Bf4 {[%clk 0:02:55]}  c5 {[%clk 0:02:59]} 4. e4 {[%clk 0:02:52]}  Nxe4 {[%clk 0:02:49]} 5. Nxe4 {[%clk 0:02:52]}  dxe4 {[%clk 0:02:50]} 6. d5 {[%clk 0:02:50]}  g6 {[%clk 0:02:30]} 7. Ne2 {[%clk 0:02:32]}  Bg7 {[%clk 0:02:24]} 8. Nc3 {[%clk 0:02:32]}  Qa5 {[%clk 0:02:22]} 9. Qd2 {[%clk 0:02:27]}  O-O {[%clk 0:02:16]} 10. O-O-O {[%clk 0:02:22]}  b5 {[%clk 0:02:06]} 11. Bh6 {[%clk 0:02:14]}  b4 {[%clk 0:02:02]} 12. Bxg7 {[%clk 0:02:14]}  Kxg7 {[%clk 0:02:00]} 13. Nxe4 {[%clk 0:02:13]}  Qxa2 {[%clk 0:02:00]} 14. Qe3 {[%clk 0:01:34]}  Bf5 {[%clk 0:01:50]} 15. Nxc5 {[%clk 0:01:30]}  Qa1+ {[%clk 0:01:48]} 16. Kd2 {[%clk 0:01:30]}  Qxb2 {[%clk 0:01:49]} 17. Nd3 {[%clk 0:01:17]}  Qc3+ {[%clk 0:01:46]} 18. Kc1 {[%clk 0:01:14]}  Rc8 {[%clk 0:01:43]} 19. Qe2 {[%clk 0:00:49]}  b3 {[%clk 0:01:34]} 20. g4 {[%clk 0:00:42]}  Bxg4 {[%clk 0:01:17]} 21. Qe5+ {[%clk 0:00:20]}  Qxe5 {[%clk 0:01:16]} 22. Nxe5 {[%clk 0:00:21]}  Rxc2+ {[%clk 0:01:15]} 23. Kb1 {[%clk 0:00:21]}  Bxd1 {[%clk 0:01:16]} 24. Bd3 {[%clk 0:00:16]}  Rd2 {[%clk 0:01:06]} 25. Kc1 {[%clk 0:00:16]}  Bf3 {[%clk 0:01:01]} 26. Kxd2 {[%clk 0:00:15]}  Bxh1 {[%clk 0:01:01]} 27. Bc4 {[%clk 0:00:10]}  b2 {[%clk 0:00:57]} 28. Kc2 {[%clk 0:00:10]}  f6 {[%clk 0:00:55]} 29. Ng4 {[%clk 0:00:08]}  Nd7 {[%clk 0:00:48]} 30. Kxb2 {[%clk 0:00:08]}  Nb6 {[%clk 0:00:48]} 31. Bb3 {[%clk 0:00:07]}  Bxd5 {[%clk 0:00:48]} 32. Bc2 {[%clk 0:00:06]}  a5 {[%clk 0:00:48]} 33. Ne3 {[%clk 0:00:06]}  Be6 {[%clk 0:00:48]} 34. Kc3 {[%clk 0:00:06]}  a4 {[%clk 0:00:49]} 35. Bb1 {[%clk 0:00:06]}  a3 {[%clk 0:00:49]} 36. Nc2 {[%clk 0:00:03]}  a2 {[%clk 0:00:47]} 37. Bxa2 {[%clk 0:00:03]}  Rxa2 {[%clk 0:00:47]} 38. f4 {[%clk 0:00:04]}  Na4+ {[%clk 0:00:45]} 39. Kd2 {[%clk 0:00:02]}  Bf5 {[%clk 0:00:46]} 40. Ke3 {[%clk 0:00:02]}  Rxc2 {[%clk 0:00:46]} 0-1


[Site "https://www.chess.com"]

[Event "Titled Tuesday Blitz March 07 Early 2023"]
[White "Rottenwohrer Suarez, Juan"]
[Black "Odegov, Artem"]
[WhiteFideId "32068182"]
[BlackFideId "34183644"]
[WhiteElo "2174"]
[BlackElo "2300"]
[Result "1-0"]
[Round "09"]
[TimeControl "180+2"]
[Date "2023.03.07"]
[WhiteClock "0:01:17"]
[BlackClock "0:00:06"]

1. Nf3 {[%clk 0:03:00]}  d5 {[%clk 0:02:54]} 2. g3 {[%clk 0:03:01]}  c6 {[%clk 0:02:54]} 3. Bg2 {[%clk 0:03:02]}  Bf5 {[%clk 0:02:53]} 4. O-O {[%clk 0:03:02]}  e6 {[%clk 0:02:52]} 5. c4 {[%clk 0:03:03]}  Nf6 {[%clk 0:02:52]} 6. d3 {[%clk 0:02:53]}  h6 {[%clk 0:02:51]} 7. Nc3 {[%clk 0:02:53]}  Nbd7 {[%clk 0:02:50]} 8. cxd5 {[%clk 0:02:53]}  exd5 {[%clk 0:02:51]} 9. e4 {[%clk 0:02:53]}  dxe4 {[%clk 0:02:51]} 10. dxe4 {[%clk 0:02:52]}  Bh7 {[%clk 0:02:52]} 11. e5 {[%clk 0:02:46]}  Ne4 {[%clk 0:02:43]} 12. e6 {[%clk 0:02:35]}  fxe6 {[%clk 0:02:43]} 13. Re1 {[%clk 0:02:34]}  Nxc3 {[%clk 0:02:41]} 14. bxc3 {[%clk 0:02:32]}  Be7 {[%clk 0:02:38]} 15. Nd4 {[%clk 0:02:27]}  Nf6 {[%clk 0:01:51]} 16. Qb3 {[%clk 0:02:04]}  Qd7 {[%clk 0:00:16]} 17. Nxe6 {[%clk 0:01:45]}  Bg8 {[%clk 0:00:15]} 18. Bh3 {[%clk 0:01:42]}  Bxe6 {[%clk 0:00:14]} 19. Rxe6 {[%clk 0:01:32]}  O-O-O {[%clk 0:00:06]} 20. Rxe7 {[%clk 0:01:17]} 1-0


[Site "https://www.chess.com"]